Cogmind - Beta 14 @@@ ROGUE MODE // 2024.08.18 @ 23:02:02 Player: THN-L0C Result: Self-destructed Performance ------------- Evolutions (2) 1000 Regions Visited (4) 800 Robots Destroyed (19) 95 Value Destroyed (315) 315 Prototype IDs (2) 40 Alien Tech Used (0) 0 Bonus (23) 23 TOTAL SCORE: 2273 Bonus ------- Follower Combat Kills 66 Friendly Fire -43 Cogmind --------- Core Integrity 550/550 Matter 290/300 Energy 100/100 System Corruption 0% Temperature Cool (0) Movement Rolling (115) Ox1 Location -8/Materials Parts ------- > --- POWER (1) -------- (None) > --- PROPULSION (4) --- VSS Leg Compact Wheel > --- UTILITY (4) ------ Large Storage Unit Hardened Light Armor Plating > --- WEAPON (2) ------- (None) > --- INVENTORY (15) --- Light Treads Compact Matter Pod (150) Structural Scanner Improved Terrain Scanner Hardened Light Armor Plating Improved Light Armor Plating Scrap Shield Improved Trap Extractor (0/6) Particle Gun Particle Cannon Heavy Particle Cannon High-powered Shotgun Mining Laser Peak State ------------ > --- POWER ------------ Ion Engine > --- PROPULSION ------- VSS Leg Compact Wheel > --- UTILITY ---------- Large Storage Unit Hardened Light Armor Plating > --- WEAPON ----------- Particle Gun Rocket Launcher > --- INVENTORY -------- Light Treads Compact Wheel Compact Matter Pod Structural Scanner Improved Terrain Scanner Hardened Light Armor Plating Improved Light Armor Plating Scrap Shield Improved Trap Extractor Particle Gun Particle Cannon Heavy Particle Cannon High-powered Shotgun Mining Laser [Rating: 15] Favorites ----------- Power Ion Engine Engine Ion Engine Propulsion Light Treads Treads Light Treads Leg VSS Leg Wheel Compact Wheel Utility Large Storage Unit Device Seismic Detector Storage Large Storage Unit Protection Hardened Light Armor Plating Weapon Particle Gun Energy Gun Particle Gun Energy Cannon Particle Cannon Ballistic Gun Light Assault Rifle Launcher Rocket Launcher Special Weapon Mining Laser Build | -11 -10 -10 -10 -8 ------- Run | Yrd Mat Min Sub Mat Slots Evolved 4 | . . . . 4 Power . | . . . . . Propulsion 2 | . . . . 2 Utility 2 | . . . . 2 Weapon . | . . . . . Parts Attached 35 | 7 13 12 3 . Power 2 | 1 . . 1 . Engine 2 | 1 . . 1 . Core . | . . . . . Reactor . | . . . . . Propulsion 13 | 2 2 8 1 . Treads 6 | 2 2 2 . . Leg 2 | . . 2 . . Wheel 5 | . . 4 1 . Hover . | . . . . . Flight . | . . . . . Utility 8 | 2 3 2 1 . Device 3 | 1 1 1 . . Storage 3 | 1 2 . . . Processor . | . . . . . Hackware . | . . . . . Protection 2 | . . 1 1 . Artifact . | . . . . . Weapon 12 | 2 8 2 . . Energy Gun 4 | 1 2 1 . . Energy Cannon 2 | . 2 . . . Ballistic Gun 3 | 1 2 . . . Ballistic Cannon . | . . . . . Launcher 1 | . . 1 . . Special Weapon 2 | . 2 . . . Impact Weapon . | . . . . . Slashing Weapon . | . . . . . Piercing Weapon . | . . . . . Special Melee Weapon . | . . . . . Unidentified Prototypes . | . . . . . Parts Lost 6 | . . 2 4 . Power 2 | . . 1 1 . Propulsion 2 | . . 1 1 . Utility . | . . . . . Weapon 2 | . . . 2 . Highest Loss Streak 3 | . . 2 3 . To Critical Strikes . | . . . . . Average Slot Usage (%) 96 | . 100 92 91 . Engine 11 | . 14 6 11 . Treads 17 | . 28 4 . . Leg 4 | . . 8 14 . Wheel 6 | . . 15 14 . Device 8 | . 14 2 . . Storage 14 | . 14 14 14 . Protection 5 | . . 11 13 . Energy Gun 15 | . 17 14 12 . Energy Cannon 3 | . 5 . . . Ballistic Gun 1 | . 3 . . . Launcher 5 | . . 13 9 . Peak Build Rating 15 | 7 11 14 15 . Average Rating 11 | 5 10 12 14 . On Entrance 8 | . 7 11 13 10 Naked Turns . | . . . . . Heaviest Build 37 | 14 33 37 37 . Greatest Support 40 | 40 40 40 16 . Greatest Overweight (x) 10 | . . 10 2 . Average Overweight (x) . | . . 1 1 . Largest Inventory Capacity 15 | 8 15 15 15 . Average Capacity 14 | 7 14 15 15 . Most Carried 15 | 2 15 15 15 . Average Carried 13 | . 12 14 14 . Final Capacity 15 | 8 15 15 15 15 Final Carried 15 | 2 15 15 14 14 Class Distribution -------------------- 100% | Mutant Dominant Class ---------------- Mutant | -10/Materials Mutant | -10/Mines Mutant | -10/Subcaves Mutant | -8/Materials Resources | -11 -10 -10 -10 -8 ----------- Run | Yrd Mat Min Sub Mat Matter Collected 771 | 275 153 312 31 . Remotely . | . . . . . Salvage Created 504 | 91 304 79 30 . Parts 33 | 7 25 . 1 . Haulers Intercepted . | . . . . . Recyclers Shooed . | . . . . . Parts Field Recycled . | . . . . . Retrieved Matter . | . . . . . Parts Self-Destructed 5 | . . . 5 . Prevented . | . . . . . Kills | -11 -10 -10 -10 -8 ------- Run | Yrd Mat Min Sub Mat Combat Hostiles Destroyed 16 | . 13 2 1 . Guns 14 | . 13 . 1 . AOE 2 | . . 2 . . Classes Destroyed 8 | 2 4 1 1 . Worker 1 | . 1 . . . Tunneler 1 | 1 . . . . Recycler 2 | 1 . 1 . . Operator 1 | . 1 . . . Swarmer 9 | . 9 . . . Grunt 4 | . 4 . . . Subdweller 1 | . . . 1 . Assembled 2 | . . 2 . . Best Kill Streak 5 | 1 5 3 1 . Combat Bots Only 5 | . 5 2 1 . Max Kills in Single Turn 3 | 1 1 3 1 . Gunslinging . | . . . . . Exploded 2 | . . 2 . . Melee . | . . . . . Uniques/NPCs Destroyed . | . . . . . Combat | -11 -10 -10 -10 -8 -------- Run | Yrd Mat Min Sub Mat Hostile Shots Fired 107 | . 38 24 45 . Missed 31 | . 4 7 20 . Damage Taken 1223 | . 306 388 529 . Core 147 | . 39 . 108 . Absorbed by Shields . | . . . . . Core Remaining (%) 70 | 100 . . 41 . Volleys Fired 49 | 5 41 1 2 . Largest 2 | 2 2 2 2 . Hottest 133 | 70 133 98 98 . Shots Fired 86 | 10 71 2 3 . Gun 70 | 10 57 1 2 . Cannon 6 | . 6 . . . Launcher 2 | . . 1 1 . Special 8 | . 8 . . . Kinetic 19 | 5 14 . . . Thermal 65 | 5 57 1 2 . Explosive 2 | . . 1 1 . Electromagnetic . | . . . . . Robot Hit Streak 6 | 5 6 1 4 . Robot Miss Streak 2 | 1 2 1 . . Penetration Max . | . . . . . Secondary Targets 1 | . 1 . . . Max Gunslinging Chain 1 | . 1 . . . Shots Hit Robots 46 | 8 34 1 3 . Core Hits 31 | 3 18 6 4 . Critical Kills . | . . . . . Critical Parts Destroyed . | . . . . . Critical Strikes 1 | . 1 . . . Burn 1 | . 1 . . . Melee Attacks . | . . . . . Impact . | . . . . . Slashing . | . . . . . Piercing . | . . . . . Sneak Attacks . | . . . . . Combat Hostiles . | . . . . . Follow-up Attacks . | . . . . . Damage Inflicted 1001 | 78 496 125 302 . Guns 553 | 78 449 . 26 . Cannons 44 | . 44 . . . Explosions 401 | . . 125 276 . Melee . | . . . . . Ramming 3 | . 3 . . . Kinetic 98 | 41 57 . . . Thermal 499 | 37 436 . 26 . Explosive 401 | . . 125 276 . Electromagnetic . | . . . . . Impact . | . . . . . Slashing . | . . . . . Piercing . | . . . . . Highest Corruption . | . . . . . Average Corruption . | . . . . . Corruption Purged . | . . . . . Corruption Blocked . | . . . . . Overload Shots . | . . . . . Overflow Damage . | . . . . . Projectiles . | . . . . . Explosions . | . . . . . Melee . | . . . . . Knockbacks . | . . . . . Impact . | . . . . . Kinetic . | . . . . . Secondary . | . . . . . Self-Inflicted Damage . | . . . . . Shots . | . . . . . Rammed 1 | . 1 . . . Targets Rammed 1 | . 1 . . . Kicked . | . . . . . Crushed . | . . . . . Highest Temperature 414 | 70 414 36 12 . Average Temperature 101 | 28 110 22 9 . Received Heat Transfer 222 | . 72 45 105 . Siege Activations . | . . . . . Robots Corrupted . | . . . . . Combat Hostiles . | . . . . . Parts Fried . | . . . . . Impact Corruptions . | . . . . . Robots Melted . | . . . . . Combat Hostiles . | . . . . . Parts Melted 9 | . 8 . 1 . Heat Transferred 1332 | 111 1147 . 74 . Parts Sabotaged . | . . . . . Parts Stolen . | . . . . . Parts Stripped . | . . . . . Power Chain Reactions . | . . . . . Alert | -11 -10 -10 -10 -8 ------- Run | Yrd Mat Min Sub Mat Peak Influence 236 | 10 236 37 . . Initial 26 | . 6 26 . . Average 46 | 2 63 23 . . Maximum Alert Level 1 | . 1 . . . Low Security (%) 98 | 100 97 100 . . Level 1 1 | . 2 . . . Level 2 . | . . . . . Level 3 . | . . . . . Level 4 . | . . . . . Level 5 . | . . . . . High Security . | . . . . . Max Security . | . . . . . Squads Dispatched . | . . . . . Investigation . | . . . . . Extermination . | . . . . . Reinforcement . | . . . . . Assault . | . . . . . Garrison . | . . . . . Intercept . | . . . . . Searches Triggered . | . . . . . Construction Impeded . | . . . . . Haulers Reinforced . | . . . . . Active Scanning Responses . | . . . . . Cargo Convoy Interrupts . | . . . . . Stealth | -11 -10 -10 -10 -8 --------- Run | Yrd Mat Min Sub Mat Distress Signals . | . . . . . Communications Jammed . | . . . . . Distress Signals . | . . . . . Times Spotted 49 | . 22 16 11 . Peak Tracking Total 10 | . 4 10 10 . Tactical Retreats 2 | . 1 1 . . Traps | -11 -10 -10 -10 -8 ------- Run | Yrd Mat Min Sub Mat Traps Triggered . | . . . . . Indirectly . | . . . . . Trap Hack Attempts . | . . . . . Triggered . | . . . . . Disarmed . | . . . . . Reprogrammed . | . . . . . Reused . | . . . . . Traps Extracted . | . . . . . Installed . | . . . . . Triggered . | . . . . . Machines | -11 -10 -10 -10 -8 ---------- Run | Yrd Mat Min Sub Mat Machines Disabled . | . . . . . Max in Single Turn . | . . . . . Machines Repaired . | . . . . . Machines Dismantled . | . . . . . Machines Sabotaged . | . . . . . Overloaded Fab Kills . | . . . . . Hacking | -11 -10 -10 -10 -8 --------- Run | Yrd Mat Min Sub Mat Machines Accessed 10 | . 9 1 . . Terminals 8 | . 8 . . . Fabricators . | . . . . . Repair Stations 1 | . 1 . . . Recycling Units . | . . . . . Scanalyzers . | . . . . . Garrison Access . | . . . . . Total Hacks 40 | . 39 1 . . Successful 22 | . 21 1 . . Failed 18 | . 18 . . . Catastrophic 1 | . 1 . . . Database Lockouts . | . . . . . Manual 32 | . 32 . . . Terminals 37 | . 37 . . . Fabricators . | . . . . . Repair Stations 2 | . 2 . . . Recycling Units . | . . . . . Scanalyzers . | . . . . . Garrison Access . | . . . . . Terminal Hacks 13 | . 12 1 . . Robot Analysis 5 | . 5 . . . Prototype ID Bank 1 | . 1 . . . Open Door 1 | . . 1 . . Terminal Index 1 | . 1 . . . Locate Traps 1 | . 1 . . . Hauler Manifests 1 | . 1 . . . Registered Prototypes 1 | . 1 . . . Zone Layout 2 | . 2 . . . Fabricator Hacks . | . . . . . Repair Station Hacks 1 | . 1 . . . Scan Component 1 | . 1 . . . Recycling Unit Hacks . | . . . . . Scanalyzer . | . . . . . Garrison Access Hacks . | . . . . . Unauthorized Hacks 8 | . 8 . . . Terminals 8 | . 8 . . . Assimilate 1 | . 1 . . . Botnet 7 | . 7 . . . Fabricators . | . . . . . Repair Stations . | . . . . . Recycling Units . | . . . . . Scanalyzers . | . . . . . Garrison Access . | . . . . . Data Cores Recovered 1 | . 1 . . . Used 1 | . 1 . . . Hacking Detections 9 | . 9 . . . Full Trace Events . | . . . . . Feedback Events . | . . . . . Feedback Blocked . | . . . . . Robot Schematics Acquired . | . . . . . Robots Built . | . . . . . Authchips . | . . . . . Time . | . . . . . Total Robot Build Rating . | . . . . . Part Schematics Acquired . | . . . . . Parts Built . | . . . . . Authchips . | . . . . . Time . | . . . . . Total Part Build Rating . | . . . . . Parts Repaired . | . . . . . Time . | . . . . . Parts Recycled . | . . . . . Recycled Matter . | . . . . . Retrieved Matter . | . . . . . Retrieved Components . | . . . . . Parts Scanalyzed . | . . . . . Part Schematics Acquired . | . . . . . Parts Damaged . | . . . . . Bothacking | -11 -10 -10 -10 -8 ------------ Run | Yrd Mat Min Sub Mat Used RIF Installer . | . . . . . Robots Hacked . | . . . . . Non-combat . | . . . . . Combat . | . . . . . Robot Hacks Applied . | . . . . . Relay Couplers Released . | . . . . . Fabnet Peak Effective % . | . . . . . Robots Rewired . | . . . . . Allies Hacked . | . . . . . Hacks Repelled . | . . . . . Allies | -11 -10 -10 -10 -8 -------- Run | Yrd Mat Min Sub Mat Total Allies 3 | . . 3 . . Largest Group 3 | . . 3 3 . Highest-Rated Group 40 | . . 40 40 . Highest-Rated Ally 16 | . . 16 16 . Total Orders . | . . . . . Ally Attacks 28 | . . 11 17 . Total Damage 254 | . . 58 196 . Kills 3 | . . 2 1 . Allies Corrupted . | . . . . . Allies Melted . | . . . . . Intel | -11 -10 -10 -10 -8 ------- Run | Yrd Mat Min Sub Mat Robot Analysis Total 5 | . 5 . . . Derelict Logs Recovered 1 | . . 1 . . Drone Launches . | . . . . . Drone Recoveries . | . . . . . Exploration | -11 -10 -10 -10 -8 ------------- Run | Yrd Mat Min Sub Mat Turns Passed 2849 | 125 1565 938 221 . Spaces Moved 1649 | 65 746 672 166 . Core 7 | 6 . 1 . . Treads 846 | 59 746 41 . . Legs 101 | . . 101 . . Wheels 695 | . . 529 166 . Hover . | . . . . . Flight . | . . . . . Fastest Speed 50 | 50 160 105 115 . Average Speed 143 | 149 160 129 127 . Slowest Speed 550 | 160 160 550 130 . Overloaded Moves . | . . . . . Propulsion Burnouts . | . . . . . Robots Hopped . | . . . . . Cave-ins Triggered . | . . . . . Exploration Rate (%) 43 | 5 97 98 17 1 Regions Visited 4 Branch Regions 2 Pre-discovered Areas . | . . . . . Known Exits Taken . | . . . . . Unknown Exits Taken 4 | 1 1 1 1 . Scrap Searched 1 | . . 1 . . Spaces Dug 5 | . 5 . . . Terrain Destroyed 21 | . 5 6 10 . Melee . | . . . . . Projectile 5 | . 5 . . . AOE 16 | . . 6 10 . Terrain Rammed . | . . . . . Walls Destroyed . | . . . . . Machines Disabled . | . . . . . Actions | -11 -10 -10 -10 -8 --------- Run | Yrd Mat Min Sub Mat Total 2026 | 80 1036 737 173 . Wait 238 | 2 203 33 . . Move 1645 | 64 745 671 165 . Hop . | . . . . . Pick Up 30 | 2 19 8 1 . Fast Attach 12 | 7 1 3 1 . Attach 5 | . 2 2 1 . Detach 3 | . 2 1 . . Swap 18 | . 10 7 1 . Drop 25 | . 12 11 2 . Fire 49 | 5 41 1 2 . Melee . | . . . . . Ram . | . . . . . Kick . | . . . . . Crush 1 | . 1 . . . Escape Stasis . | . . . . . Rewire . | . . . . . Trap . | . . . . . Miscellaneous . | . . . . . Route ------- -11/Scrapyard -10/Materials (discovered 6 exits: [*Mat x3] / *Min x2 / [Sub]) -10/Mines (discovered 3 exits: [*Mat x2] / [*Sub]) -10/Subcaves -8/Materials History --------- Turn | Location | Event 5 | -11/Scrapyard | Discovered new exit (range 16) 126 | -11/Scrapyard | Entered Materials 306 | -10/Materials | Build established: Mutant 653 | -10/Materials | Discovered new exit (range 8) 934 | -10/Materials | Discovered new exit (range 9) 1081 | -10/Materials | Discovered new exit (range 13) 1152 | -10/Materials | Discovered new exit (range 13) 1272 | -10/Materials | Discovered new exit (range 6) 1621 | -10/Materials | Discovered new exit (range 9) 1691 | -10/Materials | Entered Mines 1699 | -10/Mines | Discovered new exit (range 10) 1748 | -10/Mines | Assembled infested the area 1752 | -10/Mines | Received a Rocket Launcher from a helpful Derelict 1753 | -10/Mines | Assisted by a Guerilla fighting off Assembled 1805 | -10/Mines | Learned Materials security intel 1968 | -10/Mines | Met a Derelict who couldn't figure out how to use a Trap Extractor 2139 | -10/Mines | Assisted by bots powering up and referring to "LRC-V3" 2536 | -10/Mines | Discovered new exit (range 8) 2589 | -10/Mines | Discovered new exit (range 15) 2629 | -10/Mines | Entered Subcaves 2629 | -10/Subcaves | Accompanied by 3 allies 2782 | -10/Subcaves | Ambushed by swarm of Subdwellers 2782 | -10/Subcaves | Ambushed by Subdwellers from Twisted Machinery 2782 | -10/Subcaves | Ambushed by Subdwellers from Twisted Machinery 2782 | -10/Subcaves | Ambushed by Subdwellers from Twisted Machinery 2787 | -10/Subcaves | Ambushed by Subdwellers from Twisted Machinery 2805 | -10/Subcaves | Shifting Twisted Machinery released Flamer 2826 | -10/Subcaves | Lost 5 allies 2833 | -10/Subcaves | Core integrity fell below 50% 2843 | -10/Subcaves | Discovered new exit (range 6) 2850 | -10/Subcaves | Entered Materials 2850 | -8/Materials | Evolved 4 slots: Propulsion x2, Utility x2 2850 | -8/Materials | Self-destructed Last Messages --------------- 02782_ Trooper 1b suffers critical hit (Destroy). 02784_ 2N-2NP(R) emerges from the Twisted Machinery. 02785_ GW-YQS(R) suffers critical hit (Destroy). 02785_ GW-YQS(R) destroyed. 02786_ F2-ABP(R) emerges from the Twisted Machinery. 02786_ Trooper 1b destroyed. 02787_ 4J-GS8(R) angrily emerges from the Twisted Machinery. 02787_ OF-1PA(h) destroyed. 02789_ Rocket Launcher destroyed. 02790_ Sub. Monowheel melted. 02790_ F2-ABP(R) destroyed. 02791_ E2-416(g) destroyed. Flamer falls loose from the Twisted Machinery. 02829_ Particle Gun destroyed. 02842_ Ion Engine destroyed. 02843_ EXIT=FOUND 02846_ Com. Wheel destroyed. PARAMETERS=PROPULSION+2,UTILITY+2 LOCATION=UNKNOWN GOAL=ESCAPE Map ----- +----------------------------------------------------+ | ???????????????????????????????????????? | | ???????????????????????????????????????? | | ???????????????????????????????????????? | | ???????????????????????????????????????? | | ???????????????????????????????????????? | | ???????????????????????????????????????? | | ???????????????????????????????????????? | | ???????????????????????????????????????? | | ???????????????????????????????????????? | | ???????????????????????????????????????? | | ???????????????????????????????????????? | | ???????????????????????????????????????? | | ???????????????????????????????????????? | | ???????????????????????????????????????? | | ???????????????????????????????????????? | | ???????????????????????????????????????? | | ????????????###+###????????????????????? | | ???????????## ##???????????????????? | | ???????????? ????????????????????? | | ???????????? ????????????????????? | | ????????????? ?????????????????????? | | ????????????? o ?????????????????????? | | ?????????????# #?????????????????????? | | ?????????????# #?????????????????????? | | ?????????????+ #?????????????????????? | | ?????????????# @ #?????????????????????? | | ?????????????# #?????????????????????? | | ?????????????#####?????????????????????? | | ???????????????????????????????????????? | | ???????????????????????????????????????? | | ???????????????????????????????????????? | | ???????????????????????????????????????? | | ???????????????????????????????????????? | | ???????????????????????????????????????? | | ???????????????????????????????????????? | | ???????????????????????????????????????? | | ???????????????????????????????????????? | | | | | | | | | | | | | | | | | | | | | | | | | | | +----------------------------------------------------+ Best States ------------- Heat Dissipation 25 Energy Generation 10 Energy Capacity 250 Matter Stores 300 Matter Capacity 300 Sight Range 16 Terrain Scan Density 10 Armor Coverage 150 Evasion (%) 40 Recoil Reduction 2 Item Schematics ----------------- None Robot Schematics ------------------ None Fabricated ------------ Nothing Alien Tech Used ----------------- None Achievements -------------- None Challenges ------------ None Game ------ Seed SuspensionHackingSplitter Manual? 0 Play Time 00:20:43 Cumulative 72.7 hours Start 2024.08.18 @ 22:39:59 End 2024.08.18 @ 23:02:02 Sessions 1 Manual Loads 0 Difficulty Rogue Special Mode None Game No. 70 Rogue 70 Adventurer 0 Explorer 0 Win Type - Total 0 Types 0/0/0/0/0/0/0/0/0 Lore% 45 Gallery% 49 Achievement% 39 Wizard Run 0 Options --------- Layout 2 ASCII 0 Keyboard 1 Movement Vi Keybinds 0 Fullscreen 1 Font 32/SmallcapsGlow Map View 77x44 Zoom Use 0% Tactical HUD 1 Map Filters NONE Filters NONE Steam 1 RUN: cd4aa3b7-1aa8-4195-9cca-93355da9450f